bitfinex/quotes_BTCUSD_20250212
["timestamp","ask_amount","ask_price","bid_price","bid_amount"]
[1739381188589,0.01389296,97324.0,97314.0,0.023]
[1739381188789,0.432269,97339.0,97315.0,0.10250365]
[1739381189143,0.154135,97318.0,97315.0,0.10250365]
[1739381189545,0.154135,97317.0,97315.0,0.10250365]
[1739381189907,0.154135,97317.0,97315.0,0.10850365]
[1739381190116,0.205488,97329.0,97315.0,0.10850365]
[1739381190499,0.205488,97329.0,97315.0,0.10250365]
[1739381191108,0.06337805,97333.0,97315.0,0.10250365]
[1739381191309,0.154137,97316.0,97315.0,0.12550365]
[1739381191638,0.20549,97328.0,97315.0,0.12550365]
[1739381191879,0.154131,97320.0,97315.0,0.14450365]
[1739381192064,0.154131,97320.0,97315.0,0.14050365]
[1739381192279,0.26885905,97333.0,97315.0,0.12550365]
[1739381192479,0.15,97332.0,97315.0,0.12550365]
[1739381192701,0.01357805,97333.0,97316.0,0.02402749]
[1739381192863,0.205482,97332.0,97318.0,0.023]
[1739381193200,0.154113,97331.0,97323.0,0.177125]
[1739381193398,0.205482,97332.0,97325.0,0.023]
[1739381193712,0.15511,97333.0,97327.0,0.177118]
[1739381193917,0.001,97333.0,97329.0,0.023]
[1739381194079,0.154111,97332.0,97331.0,0.023]
[1739381194293,0.154111,97332.0,97310.0,0.43370033]
[1739381194294,0.0817,97332.0,97310.0,0.01002726]
[1739381194495,0.154135,97317.0,97316.0,0.10250365]
[1739381194653,0.154137,97316.0,97310.0,0.01002726]
[1739381195354,0.205513,97318.0,97310.0,0.01002726]
[1739381195553,0.154143,97312.0,97310.0,0.01002726]
[1739381195683,0.154144,97311.0,97310.0,0.01002726]
[1739381196024,0.154144,97311.0,97310.0,0.03302726]
[1739381196789,0.154144,97311.0,97310.0,0.03902726]
[1739381197213,0.154144,97311.0,97310.0,0.05402726]
[1739381197818,0.154142,97313.0,97311.0,0.023]
[1739381198024,0.154138,97316.0,97313.0,0.023]
[1739381198220,0.154138,97316.0,97315.0,0.023]
[1739381199030,0.205513,97318.0,97311.0,0.015]
[1739381199031,0.154143,97312.0,97311.0,0.015]
[1739381199458,0.154143,97312.0,97311.0,0.023]
[1739381201546,0.154143,97312.0,97311.0,0.043]
[1739381203578,0.232543,97312.0,97311.0,0.043]
[1739381204029,0.154143,97312.0,97311.0,0.043]
[1739381204710,0.154143,97312.0,97311.0,0.023]
[1739381204919,0.154143,97312.0,97311.0,0.027]
[1739381205074,0.001,97312.0,97311.0,0.12950365]
[1739381205277,0.154141,97314.0,97311.0,0.12550365]
[1739381205481,0.154141,97314.0,97313.0,0.023]
[1739381205686,0.154141,97314.0,97313.0,0.12550365]
[1739381206135,0.0001066,97318.0,97317.0,0.154135]
[1739381206342,0.15408,97352.0,97318.0,0.2497]
[1739381206550,0.09138582,97359.0,97341.0,0.154096]
[1739381206770,0.09138582,97359.0,97342.0,0.12550365]
[1739381206997,0.154094,97343.0,97342.0,0.12550365]
[1739381207417,0.154112,97332.0,97329.0,0.5465]
[1739381207570,0.154112,97332.0,97330.0,0.10250365]
[1739381207774,0.154113,97331.0,97330.0,0.10250365]
[1739381207980,0.154113,97331.0,97330.0,0.12550365]
[1739381208345,0.20548,97333.0,97330.0,0.12550365]
[1739381208547,0.20548,97333.0,97331.0,0.023]
[1739381208921,0.154113,97331.0,97330.0,0.015]
[1739381209039,0.154113,97331.0,97330.0,0.018]
[1739381209244,0.154113,97331.0,97317.0,0.0459]
[1739381209245,0.154121,97326.0,97317.0,0.0459]
[1739381209602,0.205482,97332.0,97331.0,0.023]
[1739381209603,0.154111,97332.0,97331.0,0.023]
[1739381210119,0.205467,97339.0,97331.0,0.023]
[1739381210309,0.1541,97340.0,97333.0,0.023]
[1739381210484,0.20545,97347.0,97335.0,0.023]
[1739381210683,0.09138582,97356.0,97337.0,0.023]
[1739381210907,0.154085,97349.0,97341.0,0.154097]
[1739381211086,0.10872914,97356.0,97343.0,0.177094]
[1739381211288,0.10872914,97356.0,97345.0,0.023]
[1739381211487,0.154086,97348.0,97347.0,0.023]
[1739381211727,0.205445,97350.0,97347.0,0.12550365]
[1739381211872,0.359528,97350.0,97349.0,0.023]
[1739381212094,0.359528,97350.0,97349.0,0.12550365]
[1739381213201,0.359528,97350.0,97349.0,0.13750365]
[1739381213400,0.359528,97350.0,97349.0,0.13850365]
[1739381214095,0.154083,97350.0,97349.0,0.13850365]
[1739381214516,0.154083,97350.0,97349.0,0.12650365]
[1739381215060,0.154083,97350.0,97349.0,0.13850365]
[1739381215263,0.154083,97350.0,97349.0,0.14050365]
[1739381215577,0.1541896,97350.0,97349.0,0.14050365]
[1739381217295,0.0001066,97350.0,97349.0,0.14050365]
[1739381217918,0.1541896,97350.0,97349.0,0.14050365]
[1739381221599,0.1541896,97350.0,97349.0,0.12750365]
[1739381221835,0.0001066,97350.0,97349.0,0.12750365]
[1739381222057,0.0001066,97350.0,97349.0,0.29258765]
[1739381222291,0.0001066,97350.0,97349.0,0.37258765]
[1739381222472,0.0001066,97350.0,97349.0,0.37458765]
[1739381222820,0.0001066,97350.0,97349.0,0.22050365]
[1739381223225,0.0001066,97350.0,97349.0,0.68700365]
[1739381224288,0.0001066,97350.0,97349.0,0.5615]
[1739381224691,0.0001066,97350.0,97349.0,0.5845]
[1739381226041,0.01704789,97350.0,97349.0,0.5845]
[1739381226244,0.0001066,97350.0,97349.0,0.5845]
[1739381227077,0.0001066,97350.0,97349.0,0.68700365]
[1739381227541,0.1541896,97350.0,97349.0,0.68700365]
[1739381227741,0.0001066,97350.0,97349.0,0.68700365]
[1739381228321,0.0001066,97350.0,97349.0,0.14050365]
[1739381228867,0.0001066,97350.0,97349.0,0.14153078]
[1739381229014,0.0001066,97350.0,97349.0,0.14050365]
[1739381231098,0.0001066,97350.0,97349.0,0.21640365]
[1739381231436,0.0001066,97350.0,97349.0,0.68700365]
[1739381232859,0.0001066,97350.0,97349.0,0.66400365]
[1739381233029,0.0001066,97350.0,97349.0,0.11750365]
[1739381234107,0.0001066,97350.0,97349.0,0.78840365]
[1739381235255,0.0001066,97350.0,97349.0,0.81140365]
[1739381235428,0.0001066,97350.0,97349.0,0.94640365]
[1739381235876,0.0001066,97350.0,97349.0,0.96640365]
[1739381236066,0.0001066,97350.0,97349.0,0.95940365]
[1739381236205,0.0001066,97350.0,97349.0,0.94640365]
[1739381236395,0.0001066,97350.0,97349.0,0.95340365]
[1739381237107,0.0001066,97350.0,97349.0,0.94640365]
[1739381237330,0.0001066,97350.0,97349.0,0.95386495]
[1739381237556,0.0001066,97350.0,97349.0,0.96086495]
[1739381237804,0.0001066,97350.0,97349.0,0.97586495]
[1739381238258,0.0001066,97350.0,97349.0,0.96086495]
[1739381238469,0.0001066,97350.0,97349.0,0.97586495]
[1739381239050,0.0001066,97350.0,97349.0,0.96840365]
[1739381239662,0.0001066,97350.0,97349.0,0.94640365]
[1739381240046,0.0001066,97350.0,97349.0,0.95340365]
[1739381240261,0.0001066,97350.0,97349.0,1.28040365]
[1739381240841,0.0001066,97350.0,97349.0,1.25740365]
[1739381241762,0.0001066,97350.0,97349.0,1.01666602]
[1739381243358,0.0001066,97350.0,97349.0,1.30646602]
[1739381243553,0.0001066,97350.0,97349.0,1.29280365]
[1739381244002,0.0001066,97350.0,97349.0,1.31329994]
[1739381244226,0.0001066,97350.0,97349.0,1.29829994]
[1739381244452,0.0001066,97350.0,97349.0,1.31329994]
[1739381244939,0.0001066,97350.0,97349.0,1.29829994]
[1739381245155,0.0001066,97350.0,97349.0,1.31549651]
[1739381245405,0.0001066,97350.0,97349.0,1.32549651]
[1739381245579,0.0001066,97350.0,97349.0,1.33049651]
[1739381245783,0.0001066,97350.0,97349.0,1.46458051]
[1739381245992,0.0001066,97350.0,97349.0,1.47958051]
[1739381246142,0.0001066,97350.0,97349.0,1.48658051]
[1739381247217,0.0001066,97350.0,97349.0,1.47158051]
[1739381247610,0.0001066,97350.0,97349.0,1.48658051]
[1739381247823,0.0001066,97350.0,97349.0,1.47958051]
[1739381248358,0.0001066,97350.0,97349.0,1.48658051]
[1739381249194,0.0001066,97350.0,97349.0,1.49591055]
[1739381249661,0.0001066,97350.0,97349.0,1.50337458]
[1739381250837,0.0001066,97350.0,97349.0,1.49404454]
[1739381251465,0.0001066,97350.0,97349.0,1.47904454]
[1739381251840,0.0001066,97350.0,97349.0,1.48704454]
[1739381252284,0.0001066,97350.0,97349.0,1.49404454]
[1739381252506,0.0001066,97350.0,97349.0,1.48704454]
[1739381252714,0.0001066,97350.0,97349.0,1.49898187]
[1739381252832,0.0001066,97350.0,97349.0,1.50598187]
[1739381253039,0.0001066,97350.0,97349.0,1.49898187]
[1739381253258,0.0001066,97350.0,97349.0,1.48398187]
[1739381253662,0.0001066,97350.0,97349.0,1.49898187]
[1739381253866,0.0001066,97350.0,97349.0,1.50598187]
[1739381254092,0.0001066,97350.0,97349.0,1.49098187]
[1739381254319,0.0001066,97350.0,97349.0,1.17674825]
[1739381254535,0.0001066,97350.0,97349.0,1.15955168]
[1739381254793,0.0001066,97350.0,97349.0,1.14455168]
[1739381255015,0.0001066,97350.0,97349.0,1.13755168]
[1739381255246,0.0001066,97350.0,97349.0,1.15255168]
[1739381255447,0.0001066,97350.0,97349.0,1.15955168]
[1739381255661,0.0001066,97350.0,97349.0,1.15255168]
[1739381255828,0.0001066,97350.0,97349.0,1.15955168]
[1739381256278,0.0001066,97350.0,97349.0,1.13008765]
[1739381256477,0.0001066,97350.0,97349.0,1.13708765]
[1739381256975,0.0001066,97350.0,97349.0,1.15208765]
[1739381258502,0.0001066,97350.0,97349.0,0.82508765]
[1739381259430,0.0001066,97350.0,97349.0,0.84808765]
[1739381259747,0.0001066,97350.0,97349.0,0.92398765]
[1739381260174,0.0001066,97350.0,97349.0,1.07398765]
[1739381260385,0.0001066,97350.0,97349.0,1.08333347]
[1739381261530,0.0001066,97350.0,97349.0,1.09080932]
[1739381261974,0.0001066,97350.0,97349.0,1.0814635]
[1739381262192,0.0001066,97350.0,97349.0,1.0744635]
[1739381262623,0.0001066,97350.0,97349.0,1.0814635]
[1739381262959,0.0001066,97350.0,97349.0,1.0664635]
[1739381263397,0.0001066,97350.0,97349.0,1.0814635]
[1739381264674,0.0001066,97350.0,97349.0,1.4084635]
[1739381265322,6e-07,97350.0,97349.0,1.4184635]
[1739381265548,0.0142692,97392.0,97358.0,0.125]
[1739381265698,0.0142692,97392.0,97357.0,0.02]
[1739381265699,0.0142692,97392.0,97389.0,0.25652465]
[1739381265904,0.0142692,97392.0,97389.0,0.82602465]
[1739381266242,0.0142692,97392.0,97389.0,0.25652465]
[1739381266451,0.0142692,97392.0,97387.0,0.02058997]
[1739381266623,0.14254507,97420.0,97388.0,0.10250365]
[1739381266800,0.154002,97401.0,97388.0,0.10250365]
[1739381267002,0.153988,97410.0,97395.0,0.154011]
[1739381267212,0.22910925,97415.0,97396.0,0.10250365]
[1739381267419,0.16978654,97411.0,97397.0,0.205345]
[1739381267630,0.01579854,97411.0,97400.0,0.154003]
[1739381267857,0.153984,97413.0,97401.0,0.25650565]
[1739381268106,0.07512825,97415.0,97401.0,0.10250365]
[1739381268556,0.07512825,97415.0,97406.0,0.153994]
[1739381268728,0.07512825,97415.0,97406.0,0.25649765]
[1739381270505,0.07512825,97415.0,97406.0,0.26249765]
[1739381270785,0.07512825,97415.0,97406.0,0.25649765]
[1739381270991,0.07512825,97415.0,97406.0,0.80799765]
[1739381271120,0.07512825,97415.0,97406.0,0.82299765]
[1739381271339,0.07512825,97415.0,97406.0,0.84099765]
[1739381271538,0.07512825,97415.0,97406.0,0.82599765]
[1739381271995,0.07512825,97415.0,97406.0,0.84099765]
[1739381272556,0.07512825,97415.0,97406.0,0.81799765]
[1739381272993,0.07512825,97415.0,97406.0,0.82499765]
[1739381273204,0.07512825,97415.0,97406.0,0.81799765]
[1739381273629,0.07512825,97415.0,97406.0,0.80999765]
[1739381273841,0.07512825,97415.0,97406.0,0.80299765]
[1739381274036,0.07512825,97415.0,97406.0,0.82499765]
[1739381274239,0.07512825,97415.0,97406.0,0.99799765]
[1739381274495,0.07512825,97415.0,97406.0,0.98299765]
[1739381274611,0.07512825,97415.0,97406.0,0.99799765]
[1739381275307,0.07512825,97415.0,97406.0,0.98299765]
[1739381275479,0.07512825,97415.0,97406.0,0.99799765]
[1739381275683,0.07512825,97415.0,97406.0,1.01814507]
[1739381276267,0.07512825,97415.0,97406.0,1.01114507]
[1739381276678,0.07512825,97415.0,97406.0,1.01814507]
[1739381276875,0.0001064,97422.0,97406.0,1.01114507]
[1739381277080,0.13437,97438.0,97412.0,0.205311]
[1739381277256,0.0489,97440.0,97420.0,0.14254507]
[1739381277454,0.0489,97440.0,97422.0,0.153969]
[1739381277660,0.076,97453.0,97430.0,0.14254507]
[1739381277866,0.205233,97451.0,97431.0,0.10250365]
[1739381278069,0.076,97453.0,97431.0,0.10250365]
[1739381278390,0.205235,97450.0,97435.0,0.153948]
[1739381278594,0.153926,97450.0,97436.0,0.10250365]
[1739381278938,0.076,97453.0,97438.0,0.14254507]
[1739381279141,0.076,97453.0,97439.0,0.10250365]
[1739381279344,0.01608352,97471.0,97443.0,0.10250365]
[1739381279345,0.0472,97467.0,97443.0,0.10250365]
[1739381279860,0.0472,97467.0,97443.0,0.25643965]
[1739381280181,0.153912,97459.0,97445.0,0.153931]
[1739381280453,0.01562356,97467.0,97447.0,0.10250365]
[1739381280658,0.153901,97465.0,97447.0,0.25643265]
[1739381280867,0.0476,97480.0,97447.0,0.25643265]
[1739381281079,0.01608119,97485.0,97447.0,1.10363265]
[1739381281290,0.0486,97497.0,97447.0,1.10363265]
[1739381281502,0.282077,97477.0,97447.0,0.51203265]
[1739381281681,0.20518,97476.0,97447.0,0.42943265]
[1739381281920,0.01555436,97483.0,97447.0,0.42943265]
[1739381282121,0.0954692,97487.0,97447.0,0.42943265]
[1739381282327,0.153877,97480.0,97447.0,0.42943265]
[1739381282541,0.0954692,97487.0,97447.0,0.42943265]
[1739381282796,0.153874,97482.0,97447.0,0.42943265]
[1739381283000,0.0954692,97487.0,97447.0,0.42943265]
[1739381283001,0.205161,97485.0,97447.0,0.42943265]
[1739381283207,0.205159,97486.0,97447.0,0.42943265]
[1739381283417,0.0142692,97487.0,97447.0,0.42943265]
[1739381283418,0.0142692,97487.0,97447.0,0.97593265]
[1739381283622,0.0142692,97487.0,97447.0,1.05803265]
[1739381284458,0.205165,97483.0,97447.0,1.07303265]
[1739381284668,0.205167,97482.0,97447.0,1.07303265]
[1739381284878,0.153884,97477.0,97447.0,1.05803265]
[1739381285072,0.153876,97481.0,97447.0,1.07303265]
[1739381285282,0.0459,97462.0,97447.0,0.12450365]
[1739381285498,0.0459,97462.0,97447.0,0.27143265]
[1739381285631,0.0142692,97487.0,97447.0,0.27143265]
[1739381285632,0.20519,97471.0,97447.0,0.25643265]
[1739381285833,0.0459,97484.0,97447.0,1.04493265]
[1739381286032,0.153883,97477.0,97447.0,1.03793265]
[1739381286235,0.205182,97474.0,97447.0,1.03793265]
[1739381286468,0.205182,97474.0,97447.0,1.04493265]
[1739381286679,0.205187,97472.0,97447.0,1.03793265]
[1739381286835,0.205194,97469.0,97447.0,1.03793265]
[1739381287041,0.153895,97469.0,97447.0,1.03793265]
[1739381287402,0.153892,97471.0,97447.0,1.03875239]
[1739381287541,0.153892,97471.0,97447.0,1.05375239]
[1739381287750,0.205185,97473.0,97447.0,1.05375239]
[1739381288006,0.0459,97484.0,97447.0,0.89632339]
[1739381288271,0.153885,97476.0,97468.0,0.153896]
[1739381288507,0.0459,97484.0,97469.0,0.10250365]
[1739381288716,0.153893,97470.0,97469.0,0.10250365]
[1739381288923,0.205163,97483.0,97469.0,0.10250365]
[1739381289108,0.0459,97484.0,97471.0,0.153891]
[1739381289301,0.205168,97482.0,97472.0,0.10250365]
[1739381289518,0.0142692,97487.0,97472.0,0.10250365]
[1739381289727,0.0142692,97487.0,97477.0,0.153881]
[1739381289928,0.0142692,97487.0,97479.0,0.153878]
[1739381290138,0.2194252,97487.0,97480.0,0.10250365]
[1739381290362,0.0142692,97487.0,97480.0,0.10250365]
[1739381291366,0.0142692,97487.0,97481.0,0.153876]
[1739381291600,0.0142692,97487.0,97482.0,0.10250365]
[1739381292723,0.01417792,97487.0,97483.0,0.205163]
[1739381293025,0.01417792,97487.0,97484.0,0.10250365]
[1739381293987,0.01417792,97487.0,97486.0,0.153868]
[1739381294244,0.01417792,97487.0,97486.0,0.25637165]
[1739381295165,0.01417792,97487.0,97486.0,0.26137165]
[1739381295280,0.01417792,97487.0,97486.0,0.25637165]
[1739381295533,0.01417792,97487.0,97486.0,0.27137165]
[1739381295725,0.01417792,97487.0,97486.0,0.27837165]
[1739381295927,0.006,97503.0,97487.0,8.98582208]
[1739381296130,0.006,97503.0,97497.0,0.15385]
[1739381296352,0.006,97503.0,97499.0,0.25635065]
[1739381296561,0.006,97503.0,97499.0,0.40635065]
[1739381296730,0.006,97503.0,97499.0,0.42935065]
[1739381297107,0.005,97500.0,97499.0,0.40635065]
[1739381297320,0.005,97500.0,97499.0,0.42935065]
[1739381297724,0.005,97500.0,97499.0,0.44435065]
[1739381298150,0.005,97500.0,97499.0,0.44543592]
[1739381298350,0.005,97500.0,97499.0,0.45243592]
[1739381298607,0.005,97500.0,97499.0,0.46043592]
[1739381298813,0.005,97500.0,97499.0,0.46743592]
[1739381299185,0.005,97500.0,97499.0,0.46043592]
[1739381299395,0.005,97500.0,97499.0,0.46743592]
[1739381299803,0.005,97500.0,97499.0,0.45243592]
[1739381300225,0.005,97500.0,97499.0,0.46743592]
[1739381300433,0.005,97500.0,97499.0,0.42835065]
[1739381300644,0.005,97500.0,97499.0,0.25635065]
[1739381300841,0.005,97500.0,97499.0,0.27135065]
[1739381300998,0.005,97500.0,97499.0,0.42835065]
[1739381301198,0.005,97500.0,97499.0,0.42135065]
[1739381301428,0.005,97500.0,97499.0,0.40635065]
[1739381301629,0.005,97500.0,97499.0,0.41335065]
[1739381301838,0.005,97500.0,97499.0,0.42135065]
[1739381302033,0.005,97500.0,97499.0,0.42835065]
[1739381302653,0.005,97500.0,97499.0,0.43285065]
[1739381303064,0.005,97500.0,97499.0,0.45585065]
[1739381304273,0.005,97500.0,97499.0,0.53265065]
[1739381304474,0.005,97500.0,97499.0,0.57855065]
[1739381304961,0.0009217,97500.0,97499.0,0.57855065]
[1739381305334,0.0009217,97500.0,97499.0,0.57155065]
[1739381305716,0.0009217,97500.0,97499.0,0.57855065]
[1739381306343,3e-07,97505.0,97504.0,0.313839]
[1739381306542,3e-07,97505.0,97504.0,0.52114265]
[1739381307174,3e-07,97505.0,97504.0,0.51114265]
[1739381307390,3e-07,97505.0,97504.0,0.52114265]
[1739381307595,1e-08,97515.0,97514.0,0.326824]
[1739381307802,1e-08,97515.0,97514.0,0.42932765]
[1739381308014,0.0489,97554.0,97514.0,0.42932765]
[1739381308220,0.04856971,97554.0,97533.0,0.10250365]
[1739381308419,0.04856971,97554.0,97543.0,0.153776]
[1739381308724,0.04856971,97554.0,97544.0,0.10250365]
[1739381309214,0.15377,97548.0,97544.0,0.10250365]
[1739381309460,0.205028,97548.0,97544.0,0.10250365]
[1739381309692,0.04856971,97554.0,97544.0,0.10250365]
[1739381309922,0.20502,97551.0,97544.0,0.10250365]
[1739381310150,0.153771,97548.0,97544.0,0.10250365]
[1739381310438,0.26926683,97554.0,97543.0,0.002]
[1739381310439,0.153775,97545.0,97543.0,0.002]
[1739381310909,0.06425183,97554.0,97544.0,0.10250365]
[1739381311158,0.15377,97549.0,97544.0,0.11950365]
[1739381311388,0.153775,97545.0,97544.0,0.11750365]
[1739381311607,0.153774,97546.0,97544.0,0.11750365]
[1739381312404,0.153774,97546.0,97544.0,0.10650365]
[1739381312613,0.153774,97546.0,97544.0,0.10250365]
[1739381312845,0.153774,97546.0,97544.0,0.10750365]
[1739381313986,0.153774,97546.0,97544.0,0.015]
[1739381314387,0.153774,97546.0,97544.0,0.005]
[1739381315361,0.06425183,97554.0,97544.0,0.005]
[1739381315362,0.00943612,97644.0,97602.0,0.01]
[1739381315586,0.00943612,97644.0,97620.0,0.21227156]
[1739381315587,0.01570392,97644.0,97620.0,0.21227156]
[1739381315806,0.01570392,97644.0,97610.0,0.21227156]
[1739381316025,0.0001064,97644.0,97611.0,0.15367]
[1739381316228,0.204827,97643.0,97610.0,0.01]
[1739381316433,0.02090591,97628.0,97610.0,0.01]
[1739381316657,0.0001064,97644.0,97602.0,0.204911]
[1739381316893,0.0001064,97644.0,97610.0,0.01]
[1739381317348,0.0001064,97644.0,97629.0,0.01]
[1739381317599,0.0001064,97644.0,97631.0,0.153639]
[1739381317828,0.0001064,97644.0,97621.0,0.01]
[1739381318071,0.153628,97639.0,97629.0,0.01]
[1739381318291,0.0001064,97644.0,97629.0,0.01]
[1739381318613,0.1537254,97644.0,97629.0,0.01]
[1739381318859,0.1537254,97644.0,97631.0,0.004]
[1739381318860,0.0001064,97644.0,97631.0,0.004]
[1739381319115,0.0001064,97644.0,97629.0,0.01]
[1739381319804,0.1537254,97644.0,97629.0,0.01]
[1739381320021,0.0001064,97644.0,97629.0,0.01]
[1739381320249,0.0001064,97644.0,97629.0,0.025]
[1739381320484,0.0001064,97644.0,97640.0,0.153625]
[1739381320740,0.0001064,97644.0,97637.0,0.01]
[1739381320981,0.0001064,97644.0,97639.0,0.01]
[1739381321685,0.0001064,97644.0,97640.0,0.004]
[1739381321902,0.0001064,97644.0,97643.0,0.01]
[1739381322155,0.0001064,97644.0,97634.0,0.0769]
[1739381322374,0.0001064,97644.0,97643.0,0.01]
[1739381322622,0.0001064,97644.0,97643.0,0.01102407]
[1739381322841,0.0001064,97644.0,97643.0,0.11250365]
[1739381323573,0.0001064,97644.0,97643.0,0.28112365]
[1739381324283,0.0001064,97644.0,97643.0,0.28812365]
[1739381324769,0.0001064,97644.0,97643.0,0.31982365]
[1739381325024,0.0001064,97644.0,97643.0,0.43582365]
[1739381325550,0.0001064,97644.0,97643.0,0.41282365]
[1739381325782,0.0001064,97644.0,97643.0,0.39782365]
[1739381325991,0.0001064,97644.0,97643.0,0.41282365]
[1739381326452,0.0001064,97644.0,97643.0,0.43582365]
[1739381326696,0.0001064,97644.0,97643.0,0.42082365]
[1739381327141,0.0001064,97644.0,97643.0,0.41382365]
[1739381327367,0.0001064,97644.0,97643.0,0.42082365]
[1739381327594,0.0001064,97644.0,97643.0,0.57082365]
[1739381327834,0.0001064,97644.0,97643.0,0.35112365]
[1739381328075,0.0001064,97644.0,97643.0,0.35912365]
[1739381328574,0.0001064,97644.0,97643.0,0.26312365]
[1739381328810,0.0001064,97644.0,97643.0,0.28112365]
[1739381329280,0.0001064,97644.0,97643.0,0.26612365]
[1739381329543,0.0001064,97644.0,97643.0,0.27112365]
[1739381329777,0.0001064,97644.0,97643.0,0.28112365]
[1739381330270,3.834e-05,97644.0,97643.0,0.28112365]
[1739381330770,3.834e-05,97644.0,97643.0,0.28812365]
[1739381331013,3.834e-05,97644.0,97643.0,0.28112365]
[1739381331251,3.834e-05,97644.0,97643.0,0.11250365]
[1739381331470,3.834e-05,97644.0,97643.0,0.11950365]
[1739381331673,3.834e-05,97644.0,97643.0,0.36022365]
[1739381331885,3.834e-05,97644.0,97643.0,0.36722365]
[1739381332092,3.834e-05,97644.0,97643.0,0.35222365]
[1739381332332,3.834e-05,97644.0,97643.0,0.36722365]
[1739381332766,3.834e-05,97644.0,97643.0,0.35222365]
[1739381333219,3.834e-05,97644.0,97643.0,0.34522365]
[1739381333430,3.834e-05,97644.0,97643.0,0.35222365]
[1739381333651,3.834e-05,97644.0,97643.0,0.25612365]
[1739381333915,3.834e-05,97644.0,97643.0,0.26612365]
[1739381334129,3.834e-05,97644.0,97643.0,0.28812365]
[1739381334335,3.834e-05,97644.0,97643.0,0.28112365]
[1739381334548,3.834e-05,97644.0,97643.0,0.27312365]
[1739381334969,3.834e-05,97644.0,97643.0,0.27112365]
[1739381335174,3.834e-05,97644.0,97643.0,0.27812365]
[1739381335380,3.834e-05,97644.0,97643.0,0.26312365]
[1739381335611,3.834e-05,97644.0,97643.0,0.28812365]
[1739381335905,3.834e-05,97644.0,97643.0,0.28834709]
[1739381336466,3.834e-05,97644.0,97643.0,0.28110709]
[1739381336694,3.834e-05,97644.0,97643.0,0.28782709]
[1739381337710,3.834e-05,97644.0,97643.0,0.27282709]
[1739381338041,3.834e-05,97644.0,97643.0,0.27782709]
[1739381338255,3.834e-05,97644.0,97643.0,0.28782709]
[1739381338962,3.834e-05,97644.0,97643.0,0.27282709]
[1739381339153,3.834e-05,97644.0,97643.0,0.27782709]
[1739381339370,3.834e-05,97644.0,97643.0,0.13420709]
[1739381339574,0.153607,97652.0,97648.0,0.01]
[1739381339776,0.00076315,97662.0,97649.0,0.10250365]
[1739381340005,0.153609,97650.0,97649.0,0.10250365]
[1739381340216,0.153603,97654.0,97649.0,0.10250365]
[1739381340411,0.153607,97652.0,97649.0,0.10250365]
[1739381340614,0.00076315,97662.0,97649.0,0.10250365]
[1739381340820,0.153606,97652.0,97649.0,0.10250365]
[1739381341032,0.153606,97652.0,97649.0,0.10950365]
[1739381341202,0.153606,97652.0,97649.0,0.10250365]
[1739381341415,0.204803,97655.0,97649.0,0.10250365]
[1739381341663,0.153609,97651.0,97649.0,0.10950365]
[1739381341820,0.153609,97650.0,97649.0,0.10950365]
[1739381342011,0.00076315,97662.0,97649.0,0.10950365]
[1739381342211,0.153609,97650.0,97649.0,0.10950365]
[1739381342471,0.20479,97661.0,97649.0,0.12450365]
[1739381342915,0.204804,97655.0,97649.0,0.10950365]
[1739381343119,0.20479,97661.0,97649.0,0.10950365]
[1739381343369,0.153609,97650.0,97649.0,0.10250365]
[1739381343608,0.153609,97650.0,97649.0,0.022]
[1739381344314,0.153609,97650.0,97649.0,0.015]
[1739381344527,0.16585362,97650.0,97649.0,0.015]
[1739381344726,0.16585362,97650.0,97649.0,0.02]
[1739381344946,0.18652996,97650.0,97649.0,0.015]
[1739381345152,0.24512996,97650.0,97649.0,0.015]
[1739381345380,0.24512996,97650.0,97643.0,0.00022344]
[1739381345381,0.153619,97644.0,97643.0,0.00022344]
[1739381345596,0.21227156,97640.0,97625.0,0.08193657]
[1739381345808,0.153645,97628.0,97626.0,0.10250365]
[1739381346215,0.204846,97634.0,97626.0,0.10250365]
[1739381346444,0.204838,97638.0,97626.0,0.10250365]
[1739381346645,0.153634,97635.0,97627.0,0.153646]
[1739381346812,0.204783,97665.0,97625.0,0.0754]
[1739381346813,0.153635,97634.0,97628.0,0.10250365]
[1739381347062,0.153642,97629.0,97628.0,0.10250365]
[1739381347267,0.01,97649.0,97625.0,0.007]
[1739381347475,0.153647,97626.0,97625.0,0.007]
[1739381347704,0.153647,97626.0,97625.0,0.11050365]
[1739381347925,0.153644,97628.0,97625.0,0.10950365]
[1739381348125,0.20482,97647.0,97626.0,0.10250365]
[1739381348331,0.204833,97641.0,97628.0,0.006]
[1739381348541,0.204833,97641.0,97589.0,0.02026129]
[1739381348542,0.2086,97635.0,97589.0,0.02026129]
[1739381348751,0.153646,97627.0,97626.0,0.015]
[1739381349163,0.01,97648.0,97600.0,0.21227156]
[1739381349164,0.204846,97634.0,97612.0,0.153669]
[1739381349437,0.153653,97623.0,97614.0,0.153666]
[1739381349645,0.153652,97623.0,97614.0,0.153666]
[1739381349851,0.001,97641.0,97595.0,0.01268378]
[1739381350060,0.21764529,97630.0,97625.0,0.004]
[1739381350272,0.21227156,97640.0,97615.0,0.10250365]
[1739381350516,0.204881,97618.0,97615.0,0.10250365]
[1739381350724,0.153663,97616.0,97615.0,0.10250365]
[1739381350923,0.153663,97616.0,97614.0,0.007]
[1739381350924,0.204874,97621.0,97604.0,0.23561757]
[1739381351132,0.153671,97611.0,97605.0,0.10250365]
[1739381351741,0.153671,97612.0,97605.0,0.10250365]
[1739381352174,0.204889,97614.0,97605.0,0.10250365]
[1739381352175,0.153671,97611.0,97605.0,0.10250365]
[1739381352582,0.153679,97606.0,97605.0,0.10250365]
[1739381352727,0.153678,97607.0,97586.0,0.08193657]
[1739381352945,0.153663,97616.0,97615.0,0.005]
[1739381353149,0.01258581,97621.0,97605.0,0.11450365]
[1739381353361,0.153671,97611.0,97606.0,0.10250365]
[1739381353527,0.153671,97611.0,97605.0,0.11950365]
[1739381353528,0.2049,97609.0,97605.0,0.11950365]
[1739381353715,0.2049,97609.0,97605.0,0.11450365]
[1739381354416,0.153679,97606.0,97605.0,0.10250365]
[1739381354617,0.153679,97606.0,97605.0,0.11750365]
[1739381354819,0.154679,97606.0,97605.0,0.11750365]
[1739381355020,0.154679,97606.0,97605.0,0.015]
[1739381355227,0.153688,97601.0,97594.0,0.153697]
[1739381355433,0.204888,97614.0,97605.0,0.015]
[1739381355645,0.002,97609.0,97605.0,0.022]
[1739381355855,0.153677,97607.0,97606.0,0.10250365]
[1739381356272,0.002,97609.0,97606.0,0.10250365]